[Event "FIDE Womens World Cup 2021"]
[Site "Sochi"]
[Date "2021.07.15"]
[Round "2.1"]
[White "Shuvalova, Polina"]
[Black "Munkhzul, Turmunkh"]
[Result "1-0"]
[ECO "C42"]
[WhiteElo "2489"]
[BlackElo "2278"]
[Annotator "ChessBase"]
[PlyCount "105"]
[EventDate "2021.07.12"]
[EventType "k.o."]
[EventCountry "RUS"]
[SourceTitle "playchess.com"]
[Source "ChessBase"]
[SourceQuality "1"]
[TimeControl "40/5400+30:1800+30"]

1. e4 {[%emt 0:00:05]} e5 {[%emt 0:00:23]} 2. Nf3 {[%emt 0:00:18]} Nf6 {[%emt 0:00:28]} 3. Nxe5 {[%emt 0:00:12]} d6 {[%emt 0:00:15]} 4. Nf3 {[%emt 0:00:10]} Nxe4 {[%emt 0:00:15]} 5. d4 {[%emt 0:00:12]} d5 {[%emt 0:00:34]} 6. Bd3 {[%emt 0:00:08]} Nc6 {[%emt 0:00:44]} 7. O-O {[%emt 0:00:33]} Be7 {[%emt 0:00:55]} 8. Nbd2 {[%emt 0:00:24]} Nxd2 {[%emt 0:01:47]} 9. Bxd2 {[%emt 0:00:13]} Bg4 {[%emt 0:02:11]} 10. c3 {[%emt 0:00:17]} O-O {[%emt 0:06:24]} 11. h3 {[%emt 0:01:03]} Bh5 {[%emt 0:02:13]} 12. g3 {[%emt 0:00:08]} Qd7 {[%emt 0:01:03]} 13. Kg2 {[%emt 0:00:26]} Bg6 {[%emt 0:00:21]} 14. Bxg6 {[%emt 0:00:15]} fxg6 {[%emt 0:00:13]} 15. Bf4 {[%emt 0:00:14]} Bd6 {[%emt 0:03:34]} 16. Bxd6 {[%emt 0:01:33]} Qxd6 {[%emt 0:00:12]} 17. Qd3 {[%emt 0:01:42]} Rae8 {[%emt 0:02:15]} 18. Rae1 {[%emt 0:03:57]} a6 {[%emt 0:06:31]} 19. b4 {[%emt 0:03:04]} Rxe1 {[%emt 0:06:31]} 20. Rxe1 {[%emt 0:00:58]} Qf6 {[%emt 0:00:18]} 21. Re3 {[%emt 0:06:58]} h6 {[%emt 0:16:41]} 22. Qe2 {[%emt 0:02:42]} g5 {[%emt 0:05:44]} 23. a4 {[%emt 0:01:40]} Qd6 {[%emt 0:07:54]} 24. Ne1 {[%emt 0:04:53]} a5 {[%emt 0:05:46]} 25. Re6 {[%emt 0:02:53]} Qd7 {[%emt 0:00:41]} 26. b5 {[%emt 0:00:33]} Nd8 {[%emt 0:00:34]} 27. Re7 {[%emt 0:01:13]} Qd6 {[%emt 0:02:10]} 28. Nd3 {[%emt 0:02:55]} Rf7 {[%emt 0:02:53]} 29. Re8+ {[%emt 0:01:59]} Rf8 {[%emt 0:00:20]} 30. Re7 {[%emt 0:00:15]} Rf7 {[%emt 0:00:06]} 31. Re5 {[%emt 0:00:06]} Kh7 {[%emt 0:06:32]} 32. Qc2 {[%emt 0:13:23]} Qg6 {[%emt 0:03:06]} 33. Qe2 {[%emt 0:00:55]} Qd6 {[%emt 0:01:48]} 34. Qa2 {[%emt 0:09:21]} c6 {[%emt 0:00:31]} 35. b6 {[%emt 0:00:28]} Ne6 {[%emt 0:02:05]} 36. Qe2 {[%emt 0:01:05]} Rf6 {[%emt 0:00:15]} 37. Qe3 {[%emt 0:02:54]} Qd7 {[%emt 0:02:51]} 38. Nc1 {[%emt 0:06:44]} Qf7 {[%emt 0:02:18]} 39. Nb3 {[%emt 0:02:44]} Qg6 {[%emt 0:01:23]} 40. Qe2 {[%emt 0:04:39]} Nf4+ {[%emt 0:05:42]} 41. gxf4 {[%emt 0:31:42]} gxf4+ {[%emt 0:30:05]} 42. Kh2 {[%emt 0:08:56]} f3 {[%emt 0:00:10]} 43. Qf1 {[%emt 0:00:10]} Qc2 {[%emt 0:00:39]} 44. Nc5 {[%emt 0:01:22]} Rg6 {[%emt 0:03:52]} 45. Re3 {[%emt 0:10:08]} Qf5 {[%emt 0:00:00]} 46. Kh1 {[%emt 0:00:00]} Kg8 {[%emt 0:00:00]} 47. Nxb7 {[%emt 0:00:00]} Qf4 {[%emt 0:00:00]} 48. Nc5 {[%emt 0:00:00]} Rg2 {[%emt 0:00:00]} 49. Qxg2 {[%emt 0:00:00]} fxg2+ {[%emt 0:00:00]} 50. Kxg2 {[%emt 0:00:00]} Qg5+ {[%emt 0:00:00]} 51. Kf1 {[%emt 0:00:00]} Qg6 {[%emt 0:00:00]} 52. b7 {[%emt 0:00:00]} Qb1+ {[%emt 0:00:00]} 53. Re1 {[%emt 0:00:00]} 1-0

[Event "FIDE Womens World Cup 2021"]
[Site "Sochi"]
[Date "2021.07.15"]
[Round "2.1"]
[White "Saduakassova, Dinara"]
[Black "Yu, Jennifer"]
[Result "1-0"]
[ECO "D37"]
[WhiteElo "2483"]
[BlackElo "2289"]
[Annotator "ChessBase"]
[PlyCount "75"]
[EventDate "2021.07.12"]
[EventType "k.o."]
[EventCountry "RUS"]
[SourceTitle "playchess.com"]
[Source "ChessBase"]
[SourceQuality "1"]
[TimeControl "40/5400+30:1800+30"]

1. d4 {[%emt 0:00:35]} Nf6 {[%emt 0:00:20]} 2. c4 {[%emt 0:00:07]} e6 {[%emt 0:00:11]} 3. Nf3 {[%emt 0:00:05]} d5 {[%emt 0:00:35]} 4. Nc3 {[%emt 0:01:01]} dxc4 {[%emt 0:00:37]} 5. e3 {[%emt 0:05:08]} c5 {[%emt 0:01:56]} 6. Bxc4 {[%emt 0:00:44]} Nc6 {[%emt 0:01:38]} 7. O-O {[%emt 0:02:11]} a6 {[%emt 0:01:01]} 8. Qe2 {[%emt 0:07:32]} b5 {[%emt 0:06:03]} 9. Bb3 {[%emt 0:08:52]} Bb7 {[%emt 0:03:35]} 10. Rd1 {[%emt 0:05:41]} Qc7 {[%emt 0:02:55]} 11. d5 {[%emt 0:02:33]} exd5 {[%emt 0:04:35]} 12. Nxd5 {[%emt 0:01:27]} Nxd5 {[%emt 0:00:04]} 13. Bxd5 {[%emt 0:00:23]} Be7 {[%emt 0:00:06]} 14. a4 {[%emt 0:03:04]} b4 {[%emt 0:05:41]} 15. e4 {[%emt 0:08:16]} O-O {[%emt 0:03:49]} 16. Be3 {[%emt 0:01:29]} Rad8 {[%emt 0:05:11]} 17. Rac1 {[%emt 0:03:01]} Na5 {[%emt 0:02:05]} 18. h3 {[%emt 0:08:11]} Bxd5 {[%emt 0:16:01]} 19. Rxd5 {[%emt 0:03:14]} Rxd5 {[%emt 0:05:46]} 20. exd5 {[%emt 0:00:25]} Rd8 {[%emt 0:00:05]} 21. Qxa6 {[%emt 0:06:33]} Rxd5 {[%emt 0:00:42]} 22. Nd2 {[%emt 0:01:23]} h6 {[%emt 0:16:26]} 23. Qa8+ {[%emt 0:09:32]} Rd8 {[%emt 0:00:33]} 24. Qe4 {[%emt 0:00:11]} Qd7 {[%emt 0:08:41]} 25. Qg4 {[%emt 0:05:37]} Qxa4 {[%emt 0:06:05]} 26. Bxh6 {[%emt 0:01:24]} Bf6 {[%emt 0:02:02]} 27. Rxc5 {[%emt 0:05:08]} Nb3 {[%emt 0:01:48]} 28. Ne4 {[%emt 0:07:16]} Bxb2 {[%emt 0:02:02]} 29. Rc8 {[%emt 0:01:09]} Qa1+ {[%emt 0:03:09]} 30. Kh2 {[%emt 0:00:09]} Rxc8 31. Qxc8+ {[%emt 0:00:04]} Kh7 {[%emt 0:00:20]} 32. Bf4 {[%emt 0:02:30]} Qd1 {[%emt 0:01:11]} 33. Qf5+ {[%emt 0:00:34]} Kg8 {[%emt 0:00:06]} 34. Qc8+ {[%emt 0:00:40]} Kh7 {[%emt 0:00:03]} 35. Ng5+ {[%emt 0:00:40]} Kg6 {[%emt 0:01:40]} 36. Qb7 {[%emt 0:00:51]} f6 {[%emt 0:00:57]} 37. Qe4+ {[%emt 0:00:34]} f5 {[%emt 0:00:06]} 38. Qe8+ {[%emt 0:00:08]} 1-0

[Event "FIDE Womens World Cup 2021"]
[Site "Sochi"]
[Date "2021.07.15"]
[Round "2.1"]
[White "Kosteniuk, Alexandra"]
[Black "Cori T., Deysi"]
[Result "1-0"]
[ECO "C02"]
[WhiteElo "2472"]
[BlackElo "2388"]
[Annotator "ChessBase"]
[PlyCount "81"]
[EventDate "2021.07.12"]
[EventType "k.o."]
[EventCountry "RUS"]
[SourceTitle "playchess.com"]
[Source "ChessBase"]
[SourceQuality "1"]
[TimeControl "40/5400+30:1800+30"]

1. e4 {[%emt 0:00:04]} e6 {[%emt 0:00:15]} 2. d4 {[%emt 0:00:06]} d5 {[%emt 0:00:08]} 3. e5 {[%emt 0:00:13]} c5 {[%emt 0:01:41]} 4. c3 {[%emt 0:00:14]} Nc6 {[%emt 0:00:27]} 5. Nf3 {[%emt 0:00:14]} Nh6 {[%emt 0:06:29]} 6. Bxh6 {[%emt 0:00:53]} gxh6 {[%emt 0:00:06]} 7. Be2 {[%emt 0:04:25]} Qb6 {[%emt 0:13:19]} 8. Qd2 {[%emt 0:04:01]} Bg7 {[%emt 0:00:42]} 9. O-O {[%emt 0:02:25]} O-O {[%emt 0:00:22]} 10. Na3 {[%emt 0:01:18]} cxd4 {[%emt 0:11:03]} 11. cxd4 {[%emt 0:00:55]} f6 {[%emt 0:00:02]} 12. exf6 {[%emt 0:00:48]} Rxf6 {[%emt 0:00:06]} 13. Nc2 {[%emt 0:01:37]} Bd7 {[%emt 0:02:25]} 14. b4 {[%emt 0:05:23]} Rf7 {[%emt 0:06:58]} 15. a4 {[%emt 0:11:28]} Raf8 {[%emt 0:02:12]} 16. Ra3 {[%emt 0:05:43]} Ne7 {[%emt 0:05:51]} 17. Ne3 {[%emt 0:05:36]} Rf4 {[%emt 0:07:42]} 18. Nc2 {[%emt 0:04:32]} Kh8 {[%emt 0:07:44]} 19. g3 {[%emt 0:03:51]} R4f7 {[%emt 0:01:32]} 20. Bd1 {[%emt 0:06:18]} Nf5 {[%emt 0:09:24]} 21. Ne5 {[%emt 0:03:03]} Bxe5 {[%emt 0:03:04]} 22. dxe5 {[%emt 0:00:05]} Rg7 {[%emt 0:05:16]} 23. b5 {[%emt 0:04:46]} Qc7 {[%emt 0:06:02]} 24. Re1 {[%emt 0:04:48]} Qc5 {[%emt 0:00:12]} 25. Rc3 {[%emt 0:03:45]} Qb6 {[%emt 0:00:59]} 26. Rf3 {[%emt 0:00:56]} Rc8 {[%emt 0:03:41]} 27. Be2 {[%emt 0:02:44]} h5 {[%emt 0:02:41]} 28. Bd3 {[%emt 0:01:47]} Nd4 {[%emt 0:01:00]} 29. Nxd4 {[%emt 0:04:04]} Qxd4 {[%emt 0:00:02]} 30. Rf4 {[%emt 0:04:03]} Qc5 {[%emt 0:00:04]} 31. Kg2 {[%emt 0:06:27]} Kg8 {[%emt 0:00:18]} 32. Rf6 {[%emt 0:02:41]} Qa3 {[%emt 0:02:36]} 33. Re3 {[%emt 0:04:54]} Qxa4 {[%emt 0:00:17]} 34. Ref3 {[%emt 0:00:08]} a5 {[%emt 0:01:34]} 35. Qh6 {[%emt 0:01:22]} Qb4 {[%emt 0:00:02]} 36. R3f4 {[%emt 0:01:33]} Qa3 {[%emt 0:00:59]} 37. Rf3 {[%emt 0:00:25]} Qc5 {[%emt 0:00:32]} 38. Qxh5 {[%emt 0:00:09]} Be8 {[%emt 0:01:04]} 39. Bxh7+ {[%emt 0:01:18]} Rxh7 {[%emt 0:00:28]} 40. Qg4+ {[%emt 0:00:26]} Rg7 {[%emt 0:00:40]} 41. Qxe6+ {[%emt 0:30:26]} 1-0

[Event "FIDE Womens World Cup 2021"]
[Site "Sochi"]
[Date "2021.07.15"]
[Round "2.1"]
[White "Khotenashvili, Bela"]
[Black "Vaishali R"]
[Result "1-0"]
[ECO "D71"]
[WhiteElo "2471"]
[BlackElo "2393"]
[Annotator "ChessBase"]
[PlyCount "107"]
[EventDate "2021.07.12"]
[EventType "k.o."]
[EventCountry "RUS"]
[SourceTitle "playchess.com"]
[Source "ChessBase"]
[SourceQuality "1"]
[TimeControl "40/5400+30:1800+30"]

1. d4 {[%emt 0:00:05]} Nf6 {[%emt 0:00:19]} 2. c4 {[%emt 0:00:08]} g6 {[%emt 0:00:05]} 3. g3 {[%emt 0:00:25]} c6 {[%emt 0:00:14]} 4. Bg2 {[%emt 0:01:03]} d5 {[%emt 0:00:09]} 5. Qa4 {[%emt 0:00:05]} Nfd7 {[%emt 0:00:33]} 6. cxd5 {[%emt 0:00:11]} Nb6 {[%emt 0:00:04]} 7. Qd1 {[%emt 0:00:12]} cxd5 {[%emt 0:00:06]} 8. Nc3 {[%emt 0:00:32]} Nc6 {[%emt 0:00:36]} 9. Nf3 {[%emt 0:01:21]} Bg7 {[%emt 0:00:35]} 10. e3 {[%emt 0:11:29]} Bg4 {[%emt 0:11:00]} 11. h3 {[%emt 0:01:00]} Bxf3 {[%emt 0:00:07]} 12. Bxf3 {[%emt 0:01:04]} O-O {[%emt 0:01:02]} 13. O-O {[%emt 0:01:16]} Rc8 {[%emt 0:02:47]} 14. Bg2 {[%emt 0:11:19]} e6 {[%emt 0:11:44]} 15. Ne2 {[%emt 0:15:13]} a5 {[%emt 0:18:39]} 16. b3 {[%emt 0:05:36]} Qe7 {[%emt 0:02:41]} 17. a4 {[%emt 0:09:11]} Nb4 {[%emt 0:02:35]} 18. Ba3 {[%emt 0:00:09]} Rc7 {[%emt 0:00:52]} 19. Qd2 {[%emt 0:02:12]} Rfc8 {[%emt 0:00:50]} 20. Rfc1 {[%emt 0:01:02]} Bf8 {[%emt 0:02:09]} 21. Rxc7 {[%emt 0:07:20]} Rxc7 {[%emt 0:05:41]} 22. Nc3 {[%emt 0:01:44]} Qd8 {[%emt 0:02:14]} 23. Bb2 {[%emt 0:06:25]} Nc8 {[%emt 0:06:57]} 24. Rc1 {[%emt 0:03:44]} Nd6 {[%emt 0:02:09]} 25. Ba3 {[%emt 0:11:50]} h5 {[%emt 0:11:50]} 26. Bxb4 {[%emt 0:04:47]} axb4 {[%emt 0:00:04]} 27. Na2 {[%emt 0:00:04]} Ne4 {[%emt 0:09:41]} 28. Bxe4 {[%emt 0:00:20]} dxe4 {[%emt 0:00:03]} 29. Rc4 {[%emt 0:04:09]} Rxc4 {[%emt 0:03:16]} 30. bxc4 {[%emt 0:00:01]} h4 {[%emt 0:00:26]} 31. g4 {[%emt 0:00:35]} f5 {[%emt 0:02:25]} 32. Nc1 {[%emt 0:01:20]} Qa5 {[%emt 0:03:45]} 33. Qd1 {[%emt 0:00:13]} Bd6 {[%emt 0:00:47]} 34. c5 {[%emt 0:00:25]} Bb8 {[%emt 0:00:27]} 35. gxf5 {[%emt 0:00:19]} exf5 {[%emt 0:00:29]} 36. Qb3+ {[%emt 0:00:17]} Kg7 {[%emt 0:00:26]} 37. Ne2 {[%emt 0:00:11]} Qa6 {[%emt 0:00:39]} 38. Kf1 {[%emt 0:00:29]} Qd3 {[%emt 0:00:29]} 39. Qxb4 {[%emt 0:00:06]} f4 {[%emt 0:00:31]} 40. exf4 {[%emt 0:01:57]} Bxf4 {[%emt 0:00:29]} 41. Ke1 {[%emt 0:17:02]} Bg5 {[%emt 0:06:08]} 42. Qb5 {[%emt 0:05:39]} Qa3 {[%emt 0:14:23]} 43. Qd7+ {[%emt 0:06:40]} Kh6 {[%emt 0:01:44]} 44. Kf1 {[%emt 0:00:30]} Bf6 {[%emt 0:05:57]} 45. Qg4 {[%emt 0:02:19]} Qf3 {[%emt 0:02:15]} 46. d5 {[%emt 0:00:11]} Qh1+ {[%emt 0:00:31]} 47. Ng1 {[%emt 0:00:26]} e3 {[%emt 0:00:19]} 48. Qf3 {[%emt 0:00:40]} e2+ {[%emt 0:01:01]} 49. Kxe2 {[%emt 0:00:18]} Qxg1 {[%emt 0:00:04]} 50. Qxf6 {[%emt 0:00:03]} Kh5 {[%emt 0:01:44]} 51. d6 {[%emt 0:00:47]} Qb1 {[%emt 0:00:22]} 52. Qh8+ {[%emt 0:00:24]} Kg5 {[%emt 0:00:06]} 53. Qe5+ {[%emt 0:00:11]} Kh6 {[%emt 0:00:02]} 54. Qd4 {[%emt 0:00:23]} 1-0

[Event "FIDE Womens World Cup 2021"]
[Site "Sochi"]
[Date "2021.07.15"]
[Round "2.1"]
[White "Paehtz, Elisabeth"]
[Black "Salimova, Nurgyul"]
[Result "1/2-1/2"]
[ECO "D47"]
[WhiteElo "2466"]
[BlackElo "2395"]
[Annotator "ChessBase"]
[PlyCount "81"]
[EventDate "2021.07.12"]
[EventType "k.o."]
[EventCountry "RUS"]
[SourceTitle "playchess.com"]
[Source "ChessBase"]
[SourceQuality "1"]
[TimeControl "40/5400+30:1800+30"]

1. d4 {[%emt 0:00:03]} Nf6 {[%emt 0:00:10]} 2. Nf3 {[%emt 0:00:06]} e6 {[%emt 0:00:33]} 3. c4 {[%emt 0:00:08]} d5 {[%emt 0:00:16]} 4. Nc3 {[%emt 0:00:05]} c6 {[%emt 0:01:55]} 5. e3 {[%emt 0:00:06]} Nbd7 {[%emt 0:00:05]} 6. Bd3 {[%emt 0:00:05]} dxc4 {[%emt 0:00:12]} 7. Bxc4 {[%emt 0:00:06]} b5 {[%emt 0:00:16]} 8. Bd3 {[%emt 0:00:06]} Bb7 {[%emt 0:00:50]} 9. O-O {[%emt 0:00:10]} a6 {[%emt 0:00:41]} 10. a4 {[%emt 0:01:12]} b4 {[%emt 0:00:42]} 11. Ne4 {[%emt 0:00:09]} c5 {[%emt 0:09:39]} 12. Nxf6+ {[%emt 0:00:11]} Nxf6 {[%emt 0:02:34]} 13. dxc5 {[%emt 0:00:11]} Bxc5 {[%emt 0:02:47]} 14. Qe2 {[%emt 0:00:11]} O-O {[%emt 0:02:29]} 15. e4 {[%emt 0:00:09]} Nd7 {[%emt 0:08:22]} 16. Bf4 {[%emt 0:05:54]} Qe7 {[%emt 0:16:27]} 17. e5 {[%emt 0:23:15]} Rfd8 {[%emt 0:03:32]} 18. Rac1 {[%emt 0:05:08]} Nf8 {[%emt 0:09:12]} 19. h4 {[%emt 0:05:33]} h6 {[%emt 0:03:36]} 20. h5 {[%emt 0:13:26]} a5 {[%emt 0:02:56]} 21. Rfd1 {[%emt 0:04:05]} Rac8 {[%emt 0:03:17]} 22. Be4 {[%emt 0:03:53]} Bxe4 {[%emt 0:01:44]} 23. Qxe4 {[%emt 0:00:05]} Qa7 {[%emt 0:01:24]} 24. Qe2 {[%emt 0:00:50]} Rxd1+ {[%emt 0:02:41]} 25. Rxd1 {[%emt 0:00:05]} Bb6 {[%emt 0:00:37]} 26. Nh2 {[%emt 0:12:26]} Qc7 {[%emt 0:13:19]} 27. Rc1 {[%emt 0:08:01]} Qd7 {[%emt 0:00:46]} 28. Rxc8 {[%emt 0:01:45]} Qxc8 {[%emt 0:00:05]} 29. Ng4 {[%emt 0:00:10]} Nd7 {[%emt 0:05:52]} 30. Qd2 {[%emt 0:08:56]} Nc5 {[%emt 0:01:56]} 31. Bxh6 {[%emt 0:07:07]} Ne4 {[%emt 0:02:43]} 32. Qf4 {[%emt 0:00:50]} Nxf2 {[%emt 0:01:18]} 33. Kh2 {[%emt 0:00:54]} Nxg4+ {[%emt 0:01:45]} 34. Qxg4 {[%emt 0:00:04]} Qf8 {[%emt 0:00:08]} 35. Kh3 {[%emt 0:01:24]} Kh7 {[%emt 0:01:30]} 36. Bg5 {[%emt 0:00:25]} Qc5 {[%emt 0:00:49]} 37. Qe4+ {[%emt 0:00:29]} Kg8 {[%emt 0:00:29]} 38. Qa8+ {[%emt 0:00:28]} Kh7 {[%emt 0:00:14]} 39. Qe4+ {[%emt 0:00:05]} Kg8 {[%emt 0:00:02]} 40. b3 {[%emt 0:01:26]} Qc3+ {[%emt 0:00:47]} 41. g3 {[%emt 0:04:08]} 1/2-1/2

[Event "FIDE Womens World Cup 2021"]
[Site "Sochi"]
[Date "2021.07.15"]
[Round "2.1"]
[White "Stefanova, Antoaneta"]
[Black "Maltsevskaya, Aleksandra"]
[Result "1/2-1/2"]
[ECO "B31"]
[WhiteElo "2463"]
[BlackElo "2382"]
[Annotator "ChessBase"]
[PlyCount "88"]
[EventDate "2021.07.12"]
[EventType "k.o."]
[EventCountry "RUS"]
[SourceTitle "playchess.com"]
[Source "ChessBase"]
[SourceQuality "1"]
[TimeControl "40/5400+30:1800+30"]

1. e4 {[%emt 0:00:04]} c5 {[%emt 0:01:12]} 2. Nf3 {[%emt 0:00:08]} Nc6 {[%emt 0:01:13]} 3. Bb5 {[%emt 0:00:16]} g6 {[%emt 0:00:19]} 4. O-O {[%emt 0:02:52]} Bg7 {[%emt 0:00:09]} 5. c3 {[%emt 0:01:08]} Nf6 {[%emt 0:00:46]} 6. Re1 {[%emt 0:01:56]} O-O {[%emt 0:00:15]} 7. h3 {[%emt 0:01:52]} e5 {[%emt 0:07:34]} 8. d4 {[%emt 0:07:02]} cxd4 {[%emt 0:03:23]} 9. cxd4 {[%emt 0:00:09]} Nxd4 {[%emt 0:08:36]} 10. Nxd4 {[%emt 0:02:25]} exd4 {[%emt 0:00:07]} 11. Qxd4 {[%emt 0:08:39]} Ng4 {[%emt 0:07:03]} 12. Qd6 {[%emt 0:45:47]} Be5 {[%emt 0:13:46]} 13. Qd2 {[%emt 0:11:43]} Qh4 {[%emt 0:06:54]} 14. Re2 {[%emt 0:02:49]} h6 {[%emt 0:23:59]} 15. Nc3 {[%emt 0:00:47]} Bh2+ {[%emt 0:05:06]} 16. Kf1 {[%emt 0:00:05]} Kh7 {[%emt 0:02:52]} 17. Nd5 {[%emt 0:01:13]} d6 {[%emt 0:00:54]} 18. Qc3 {[%emt 0:06:56]} Be5 {[%emt 0:05:36]} 19. Qa3 {[%emt 0:00:48]} f5 {[%emt 0:01:18]} 20. Bf4 {[%emt 0:01:28]} Bxf4 {[%emt 0:08:26]} 21. Nxf4 {[%emt 0:00:04]} Nh2+ {[%emt 0:00:39]} 22. Kg1 {[%emt 0:00:04]} Qxf4 {[%emt 0:00:10]} 23. exf5 {[%emt 0:00:39]} Nf3+ {[%emt 0:01:00]} 24. Qxf3 {[%emt 0:01:12]} Qxf3 {[%emt 0:00:05]} 25. fxg6+ {[%emt 0:00:56]} Kxg6 {[%emt 0:00:05]} 26. gxf3 {[%emt 0:00:02]} Bxh3 {[%emt 0:00:15]} 27. Rd1 {[%emt 0:00:31]} Rad8 {[%emt 0:00:43]} 28. Bd3+ {[%emt 0:00:57]} Kf6 {[%emt 0:00:41]} 29. Be4 {[%emt 0:00:51]} Be6 {[%emt 0:00:51]} 30. Bd5 {[%emt 0:01:08]} Rg8+ {[%emt 0:00:52]} 31. Kh2 {[%emt 0:00:24]} Bf7 {[%emt 0:00:33]} 32. Re4 {[%emt 0:00:47]} Bxd5 {[%emt 0:00:26]} 33. Rxd5 {[%emt 0:00:02]} Rg5 {[%emt 0:00:27]} 34. Rdd4 {[%emt 0:00:51]} h5 {[%emt 0:00:36]} 35. Rf4+ {[%emt 0:00:29]} Ke6 {[%emt 0:00:20]} 36. Rde4+ {[%emt 0:00:19]} Kd7 {[%emt 0:00:36]} 37. Rf7+ {[%emt 0:00:10]} Kc6 {[%emt 0:00:04]} 38. Rc4+ {[%emt 0:00:30]} Kd5 {[%emt 0:00:51]} 39. Ra4 {[%emt 0:00:45]} Ke6 {[%emt 0:00:39]} 40. Rxb7 {[%emt 0:00:28]} Rdg8 {[%emt 0:00:12]} 41. Re4+ {[%emt 0:02:20]} Kf6 {[%emt 0:01:55]} 42. Rf4+ {[%emt 0:16:10]} Ke6 {[%emt 0:00:10]} 43. Re4+ {[%emt 0:00:15]} Kf6 {[%emt 0:00:06]} 44. Rf4+ {[%emt 0:08:53]} Ke5 1/2-1/2

[Event "FIDE Womens World Cup 2021"]
[Site "Sochi"]
[Date "2021.07.15"]
[Round "2.1"]
[White "Bodnaruk, Anastasia"]
[Black "Zawadzka, Jolanta"]
[Result "0-1"]
[ECO "B32"]
[WhiteElo "2446"]
[BlackElo "2403"]
[Annotator "NA"]
[PlyCount "84"]
[EventDate "2021.07.12"]
[EventType "k.o."]
[EventCountry "RUS"]
[SourceTitle "playchess.com"]
[Source "ChessBase"]
[SourceQuality "1"]
[TimeControl "40/5400+30:1800+30"]

1. e4 {[%emt 0:00:03]} c5 {[%emt 0:00:08]} 2. Nf3 {[%emt 0:00:13]} Nc6 {[%emt 0:00:08]} 3. d4 {[%emt 0:00:27]} cxd4 {[%emt 0:00:05]} 4. Nxd4 {[%emt 0:00:03]} e5 {[%emt 0:00:06]} 5. Nb5 {[%emt 0:01:39]} d6 {[%emt 0:00:07]} 6. N1c3 {[%emt 0:02:48]} a6 {[%emt 0:00:10]} 7. Na3 {[%emt 0:00:04]} Be7 {[%emt 0:00:12]} 8. Nc4 {[%emt 0:04:32]} b5 {[%emt 0:00:16]} 9. Ne3 {[%emt 0:00:04]} Nf6 {[%emt 0:00:17]} 10. g3 {[%emt 0:05:50]} h5 {[%emt 0:00:32]} 11. Bg2 {[%emt 0:07:19]} h4 {[%emt 0:00:10]} 12. O-O {[%emt 0:01:25]} Rb8 {[%emt 0:00:58]} 13. Ncd5 {[%emt 0:05:27]} Nxd5 {[%emt 0:01:36]} 14. Nxd5 {[%emt 0:08:30]} h3 {[%emt 0:01:14]} 15. Bh1 {[%emt 0:03:20]} Be6 {[%emt 0:00:14]} 16. Be3 {[%emt 0:05:27]} Qd7 {[%emt 0:11:45]} 17. c3 {[%emt 0:15:05]} Bd8 {[%emt 0:07:08]} 18. b4 {[%emt 0:10:02]} Ne7 {[%emt 0:11:43]} 19. Nxe7 {[%emt 0:05:41]} Bxe7 {[%emt 0:06:02]} 20. f4 {[%emt 0:00:23]} exf4 {[%emt 0:09:41]} 21. gxf4 {[%emt 0:00:45]} Bh4 {[%emt 0:01:44]} 22. f5 {[%emt 0:06:15]} Bc4 {[%emt 0:00:28]} 23. Rf4 {[%emt 0:01:42]} Qe7 {[%emt 0:06:24]} 24. Rg4 {[%emt 0:02:19]} g6 {[%emt 0:11:22]} 25. Qd2 {[%emt 0:07:47]} Bf6 {[%emt 0:06:25]} 26. Bf3 {[%emt 0:03:28]} Kd7 {[%emt 0:03:03]} 27. Kh1 {[%emt 0:00:49]} gxf5 {[%emt 0:04:27]} 28. exf5 {[%emt 0:00:11]} Rbe8 {[%emt 0:00:32]} 29. Bd4 {[%emt 0:02:21]} Bxd4 {[%emt 0:02:05]} 30. Rxd4 {[%emt 0:00:25]} Rh4 {[%emt 0:00:21]} 31. Rxh4 {[%emt 0:00:47]} Qxh4 {[%emt 0:00:06]} 32. Rd1 {[%emt 0:00:27]} Kc8 {[%emt 0:01:33]} 33. f6 {[%emt 0:00:43]} Re2 {[%emt 0:01:14]} 34. Bxe2 {[%emt 0:00:36]} Qe4+ {[%emt 0:00:08]} 35. Bf3 {[%emt 0:00:04]} Qxf3+ {[%emt 0:00:04]} 36. Kg1 {[%emt 0:00:01]} Be2 {[%emt 0:01:18]} 37. Qg5 {[%emt 0:01:22]} Bxd1 {[%emt 0:00:18]} 38. Qg8+ {[%emt 0:00:01]} Kc7 {[%emt 0:00:41]} 39. Qxf7+ {[%emt 0:00:02]} Kb6 {[%emt 0:00:06]} 40. Qg8 {[%emt 0:01:25]} Qe3+ {[%emt 0:00:09]} 41. Kf1 {[%emt 0:30:02]} Qe2+ {[%emt 0:30:08]} 42. Kg1 {[%emt 0:00:02]} Qe1# {[%emt 0:00:06]} 0-1

[Event "FIDE Womens World Cup 2021"]
[Site "Sochi"]
[Date "2021.07.15"]
[Round "2.1"]
[White "Galliamova, Alisa"]
[Black "Hoang, Thanh Trang"]
[Result "1-0"]
[ECO "A40"]
[WhiteElo "2442"]
[BlackElo "2404"]
[Annotator "NA"]
[PlyCount "83"]
[EventDate "2021.07.12"]
[EventType "k.o."]
[EventCountry "RUS"]
[SourceTitle "playchess.com"]
[Source "ChessBase"]
[SourceQuality "1"]
[TimeControl "40/5400+30:1800+30"]

1. d4 {[%emt 0:00:03]} e6 {[%emt 0:00:22]} 2. Bf4 {[%emt 0:00:09]} f5 {[%emt 0:01:17]} 3. e3 {[%emt 0:00:12]} Nf6 {[%emt 0:00:14]} 4. Be2 {[%emt 0:00:26]} Be7 {[%emt 0:02:35]} 5. c4 {[%emt 0:01:06]} b6 {[%emt 0:01:42]} 6. Nh3 {[%emt 0:01:12]} Bb7 {[%emt 0:03:50]} 7. O-O {[%emt 0:00:16]} O-O {[%emt 0:00:53]} 8. Nc3 {[%emt 0:00:24]} Ne4 {[%emt 0:05:24]} 9. Nxe4 {[%emt 0:09:07]} fxe4 {[%emt 0:00:52]} 10. f3 {[%emt 0:07:45]} exf3 {[%emt 0:01:39]} 11. Bxf3 {[%emt 0:00:24]} Bxf3 {[%emt 0:00:33]} 12. Qxf3 {[%emt 0:02:46]} Nc6 {[%emt 0:00:47]} 13. d5 {[%emt 0:05:38]} exd5 {[%emt 0:12:26]} 14. Qxd5+ {[%emt 0:06:58]} Kh8 {[%emt 0:00:14]} 15. Rad1 {[%emt 0:12:52]} Bf6 {[%emt 0:04:26]} 16. b3 {[%emt 0:04:04]} Nb4 {[%emt 0:03:58]} 17. Qxd7 {[%emt 0:06:12]} Qxd7 {[%emt 0:00:13]} 18. Rxd7 {[%emt 0:00:05]} c5 {[%emt 0:01:15]} 19. a3 {[%emt 0:04:52]} Nc6 {[%emt 0:04:09]} 20. Bg5 {[%emt 0:07:48]} Bb2 {[%emt 0:05:53]} 21. a4 {[%emt 0:04:14]} h6 {[%emt 0:04:57]} 22. Bh4 {[%emt 0:03:56]} Rxf1+ {[%emt 0:01:50]} 23. Kxf1 {[%emt 0:00:04]} Ne5 {[%emt 0:00:35]} 24. Rb7 {[%emt 0:04:55]} Ng4 {[%emt 0:01:52]} 25. Ke2 {[%emt 0:02:05]} g5 {[%emt 0:05:31]} 26. Bg3 {[%emt 0:03:11]} Re8 {[%emt 0:00:32]} 27. Rb8 {[%emt 0:00:49]} Rxb8 {[%emt 0:02:29]} 28. Bxb8 {[%emt 0:00:06]} Be5 {[%emt 0:00:20]} 29. Bxa7 {[%emt 0:03:42]} Bc7 {[%emt 0:00:13]} 30. Nf2 {[%emt 0:02:16]} Nxh2 {[%emt 0:01:25]} 31. Ne4 {[%emt 0:02:28]} Ng4 {[%emt 0:00:50]} 32. Nc3 {[%emt 0:00:36]} Nf6 {[%emt 0:00:28]} 33. Nd5 {[%emt 0:01:12]} Nxd5 {[%emt 0:00:30]} 34. cxd5 {[%emt 0:00:04]} Kg7 {[%emt 0:00:39]} 35. d6 {[%emt 0:01:35]} Bd8 {[%emt 0:00:45]} 36. Bb8 {[%emt 0:00:33]} Kf7 {[%emt 0:01:39]} 37. Bc7 {[%emt 0:00:29]} Ke8 {[%emt 0:00:09]} 38. Bxd8 {[%emt 0:00:18]} Kxd8 {[%emt 0:00:06]} 39. e4 {[%emt 0:00:08]} Kd7 {[%emt 0:01:15]} 40. e5 {[%emt 0:00:07]} h5 {[%emt 0:01:39]} 41. Kf3 {[%emt 0:30:46]} Ke6 {[%emt 0:30:19]} 42. Ke4 {[%emt 0:00:25]} 1-0